fUST/lending_fUST_20240604
["ID","MTS","AMOUNT","RATE_DAILY","PERIOD"]
[328485693,1717435842840,-153.0,0.0002737,2]
[328485694,1717435842850,-153.0,0.0002737,2]
[328485696,1717435842859,-153.0,0.0002737,2]
[328485698,1717435842869,-153.0,0.0002737,2]
[328485700,1717435842878,-153.0,0.0002737,2]
[328485702,1717435842888,-191.0117297,0.0002737,2]
[328485703,1717435842897,-2135.88,0.00027387,3]
[328485706,1717435842907,-4072.99,0.00027387,3]
[328485708,1717435842916,-3394.16,0.00027387,3]
[328485710,1717435842926,-909.29280305,0.00027395,2]
[328485712,1717435842936,-2066.22102806,0.00027395,2]
[328485714,1717435842945,-944.54979949,0.00027395,2]
[328485715,1717435842957,-162.43681755,0.00027396,2]
[328485716,1717435842968,-5071.17910895,0.00027396,2]
[328485760,1717436159027,522.56543152,9.999e-05,2]
[328485770,1717436811831,154.99877363,9.999e-05,2]
[328485772,1717436832204,-156.98418007,0.00020999,2]
[328485773,1717436832226,-54.11034409,0.00020999,2]
[328485774,1717436841200,-302.0,0.00020999,2]
[328485777,1717436947207,-159.80488845,0.000189,2]
[328485778,1717436947226,-10729.21593802,0.00020999,2]
[328485779,1717436947246,-286.38202963,0.00020999,2]
[328485780,1717436947265,-4271.9243,0.00021,5]
[328485781,1717436947285,-2529.1226721,0.00023464,2]
[328485782,1717436959993,265.270841,0.00020999,2]
[328485783,1717436960127,-21.11118863,0.00020999,2]
[328485788,1717436972137,-641.7032007,0.00023464,2]
[328485789,1717436973119,-843.541666,0.0002382,2]
[328485790,1717436978002,271.3169274,0.00023464,2]
[328485838,1717437035118,-15.06510223,0.00023464,2]
[328485839,1717437035128,-5456.75431358,0.0002382,2]
[328485893,1717437038774,-998.91372831,0.0002382,2]
[328485895,1717437038788,-6469.64293379,0.0002382,2]
[328485898,1717437038800,-2163.28377448,0.0002382,2]
[328485900,1717437038814,-1358.9253828,0.0002382,2]
[328485902,1717437038827,-1098.35558405,0.0002382,2]
[328485903,1717437038840,-11161.25187689,0.0002382,2]
[328485904,1717437038855,-2384.9922287,0.0002383,2]
[328485905,1717437038867,-159.80488845,0.000239,2]
[328485906,1717437038878,-156.98418007,0.00024999,2]
[328485907,1717437038888,-7872.8122977,0.00025,2]
[328486174,1717437075641,129.88881137,9.999e-05,2]
[328486175,1717437075662,25.04921342,9.999e-05,2]
[328486176,1717437075962,185.88946215,9.999e-05,2]
[328486177,1717437075984,253.77592639,9.999e-05,2]
[328486178,1717437076019,45353.65304667,9.999e-05,2]
[328486179,1717437076047,11976.57579721,9.999e-05,2]
[328486180,1717437091278,317.15969073,9.999e-05,2]
[328486219,1717437854760,-2809.58928277,0.00019894,2]
[328486220,1717437854780,-2809.58928277,0.00019894,2]
[328486221,1717437854792,-380.82143446,0.00019894,2]
[328486223,1717438031151,-156.98418007,0.00019892,2]
[328486224,1717438031174,-2431.57670893,0.00019893,2]
[328486225,1717438036170,-292.89644429,0.00019893,2]
[328486226,1717438046116,-172.28512439,0.00019893,2]
[328486231,1717438151119,-150.0,0.000189,2]
[328486232,1717438151139,-3068.80547799,0.00019892,2]
[328486233,1717438151159,-5315.10706034,0.00019892,2]
[328486234,1717438151178,-8188.5680045,0.00019893,2]
[328486235,1717438151198,-286.38202963,0.00019893,2]
[328486236,1717438151218,-1321.5195859,0.000199,2]
[328486237,1717438151237,-19289.36612929,0.00019999,2]
[328486238,1717438151258,-11331.66486899,0.0002,2]
[328486239,1717438151277,-462.59629197,0.0002,2]
[328486240,1717438151297,-1321.51958585,0.00021186,2]
[328486241,1717438151319,-166.666666,0.00021918,2]
[328486242,1717438151338,-1321.51958585,0.00022471,2]
[328486243,1717438151359,-166.666666,0.00023292,2]
[328486244,1717438163630,248.78771935,0.00019893,2]
[328486245,1717438163653,37.59431028,0.00019893,2]
[328486246,1717438166169,-1321.51958585,0.00023757,2]
[328486247,1717438166191,-150.0,0.000239,2]
[328486248,1717438170100,157.56331572,9.999e-05,2]
[328486249,1717438179636,18.92270674,0.00023292,2]
[328486250,1717438179659,156.6681032,0.00023292,2]
[328486251,1717438179680,110.79121969,0.00023292,2]
[328486254,1717438197635,68.43218463,0.00023292,2]
[328486255,1717438197656,217.949845,0.00023292,2]
[328486259,1717438213638,42.19679223,0.00023292,2]
[328486294,1717438232799,-244.1852374,0.00023292,2]
[328486296,1717438232809,-166.666666,0.00024667,2]
[328486298,1717438232818,-4230.52943513,0.00024889,2]
[328486300,1717438232827,-2385.72827014,0.00024999,2]
[328486312,1717438232924,-75.33020182,0.00024999,2]
[328486447,1717438238862,-7600.6873669,0.00024999,2]
[328486460,1717438238980,-33982.40835078,0.00024999,2]
[328486462,1717438238990,-7062.97574622,0.00025,2]
[328486464,1717438238999,-762.0201281,0.00025,2]
[328486466,1717438239009,-457.17016607,0.00025,2]
[328486468,1717438239019,-1321.51958585,0.00025043,2]
[328486469,1717438239030,-151.0,0.00025043,2]
[328486471,1717438239040,-151.0,0.00025043,2]
[328486474,1717438239050,-151.0,0.00025043,2]
[328486475,1717438239060,-151.0,0.00025043,2]
[328486477,1717438239071,-199.061762,0.00025043,2]
[328486479,1717438239081,-199.061762,0.00025043,2]
[328486481,1717438239091,-151.0,0.00025043,2]
[328486484,1717438239101,-151.0,0.00025043,2]
[328486486,1717438239111,-151.0,0.00025043,2]
[328486488,1717438239122,-949.582634,0.00025043,2]
[328486489,1717438239132,-949.582634,0.00025043,2]
[328486492,1717438239142,-210.9386755,0.0002526,2]
[328486493,1717438239153,-3734.65964761,0.00025386,30]
[328486496,1717438239163,-2500.0,0.00026,2]
[328486498,1717438239173,-166.666666,0.00026,2]
[328486499,1717438239182,-151.0,0.00026255,7]
[328486501,1717438239192,-1321.51958585,0.00026329,2]
[328486504,1717438239202,-901.96516872,0.00026344,2]
[328486505,1717438239212,-151.0,0.00026344,2]
[328486508,1717438239222,-151.0,0.00026344,2]
[328486509,1717438239232,-151.0,0.00026344,2]
[328486511,1717438239241,-199.061762,0.00026344,2]
[328486513,1717438239251,-199.061762,0.00026344,2]
[328486515,1717438239260,-151.0,0.00026344,2]
[328486517,1717438239270,-151.0,0.00026344,2]
[328486519,1717438239279,-151.0,0.00026344,2]
[328486521,1717438239289,-949.582634,0.00026344,2]
[328486523,1717438239298,-949.582634,0.00026344,2]
[328486525,1717438239307,-195.64228517,0.00026489,2]
[328486527,1717438239316,-532.08989288,0.00026489,2]
[328486528,1717438239325,-7458.94652043,0.0002649,2]
[328486530,1717438239335,-451.30767105,0.0002662,2]
[328486532,1717438239344,-151.0,0.0002662,2]
[328486534,1717438239354,-151.0,0.0002662,2]
[328486536,1717438239363,-151.0,0.0002662,2]
[328486538,1717438239372,-151.0,0.0002662,2]
[328486540,1717438239382,-949.582634,0.0002662,2]
[328486542,1717438239392,-949.582634,0.0002662,2]
[328486544,1717438239401,-151.0,0.00026789,2]
[328486546,1717438239410,-151.0,0.00026789,2]
[328486548,1717438239419,-199.061762,0.00026789,2]
[328486550,1717438239428,-199.061762,0.00026789,2]
[328486552,1717438239437,-451.30767105,0.00026789,2]
[328486554,1717438239447,-151.0,0.00026804,7]
[328486556,1717438239457,-750.0,0.00026849,2]
[328486558,1717438239467,-660.347553,0.00026849,2]
[328486560,1717438239476,-164.35,0.00026876,3]
[328486562,1717438239486,-6351.86,0.00026876,3]
[328486564,1717438239495,-5293.21,0.00026876,3]
[328486566,1717438239505,-500.0,0.00026885,2]
[328486568,1717438239515,-211.11509627,0.00026885,2]
[328486570,1717438239524,-444.05093785,0.00026885,2]
[328486572,1717438239534,-616.21431296,0.00026885,2]
[328486574,1717438239544,-444.37796262,0.00026885,2]
[328486576,1717438239554,-247.18241519,0.00026885,2]
[328486578,1717438239564,-500.0,0.00026885,2]
[328486580,1717438239575,-500.0,0.00026885,2]
[328486582,1717438239586,-500.0,0.00026885,2]
[328486584,1717438239596,-500.0,0.00026885,2]
[328486586,1717438239606,-500.0,0.00026885,2]
[328486588,1717438239616,-500.0,0.00026885,2]
[328486590,1717438239627,-500.0,0.00026885,2]
[328486592,1717438239642,-175.90884651,0.00026885,2]
[328486594,1717438239651,-500.0,0.00026885,2]
[328486596,1717438239661,-500.0,0.00026885,2]
[328486598,1717438239671,-230.86074497,0.00026886,7]
[328486600,1717438239680,-42226.50342128,0.00026886,2]
[328486610,1717438239775,-14592.03954163,0.00026886,2]
[328486612,1717438239785,-12866.29708257,0.00026886,2]
[328486614,1717438239794,-3709.41,0.00026888,3]
[328486616,1717438239804,-162.53,0.000269,3]
[328486618,1717438239815,-162.53,0.000269,3]
[328486620,1717438239824,-162.53,0.000269,3]
[328486622,1717438239834,-162.53,0.000269,3]
[328486624,1717438239843,-162.53,0.000269,3]
[328486626,1717438239852,-162.53,0.000269,3]
[328486628,1717438239862,-162.53,0.000269,3]
[328486630,1717438239871,-162.53,0.000269,3]
[328486632,1717438239881,-162.53,0.000269,3]
[328486634,1717438239890,-162.53,0.000269,3]
[328486636,1717438239900,-162.53,0.000269,3]
[328486638,1717438239909,-162.53,0.000269,3]
[328486640,1717438239919,-162.53,0.000269,3]
[328486642,1717438239929,-25.1910255,0.000269,3]
[328486644,1717438239941,-137.3389745,0.000269,3]
[328486646,1717438239950,-162.53,0.000269,3]
[328486648,1717438239960,-162.53,0.000269,3]
[328486650,1717438239970,-162.53,0.000269,3]
[328486652,1717438239979,-0.51819095,0.000269,3]
[328486797,1717438242491,-162.01180905,0.000269,3]
[328486798,1717438242499,-162.53,0.000269,3]
[328486799,1717438242509,-162.53,0.000269,3]
[328486800,1717438242519,-451.30767105,0.00026959,2]
[328486801,1717438242528,-964.03425615,0.00027121,2]
[328486802,1717438242537,-451.30767105,0.00027128,2]
[328486804,1717438242547,-284.20306635,0.00027207,2]
[328486806,1717438242556,-151.0,0.00027253,2]
[328486808,1717438242565,-151.0,0.00027253,2]
[328486810,1717438242575,-151.0,0.00027253,2]
[328486812,1717438242584,-151.0,0.00027253,2]
[328486813,1717438242593,-240.51591407,0.00027253,2]
[328486814,1717438242605,-709.06671993,0.00027253,2]
[328486815,1717438242614,-949.582634,0.00027253,2]
[328486816,1717438242624,-209.07770974,0.00027257,2]
[328486817,1717438242635,-239.7277,0.0002726,2]
[328486818,1717438242646,-151.0,0.00027263,2]
[328486819,1717438242656,-151.0,0.00027263,2]
[328486820,1717438242665,-151.0,0.00027263,2]
[328486821,1717438242675,-949.582634,0.00027263,2]
[328486822,1717438242684,-949.582634,0.00027263,2]
[328486823,1717438242694,-279.37315,0.00027273,2]
[328486824,1717438242703,-151.0,0.00027273,2]
[328486825,1717438242712,-151.0,0.00027273,2]
[328486826,1717438242723,-949.582634,0.00027273,2]
[328486827,1717438242732,-949.582634,0.00027273,2]
[328486828,1717438242742,-949.582634,0.00027273,2]
[328486829,1717438242752,-949.582634,0.00027273,2]
[328486830,1717438242763,-151.0,0.00027275,2]
[328486831,1717438242774,-151.0,0.00027275,2]
[328486832,1717438242783,-199.061762,0.00027275,2]
[328486833,1717438242792,-199.061762,0.00027275,2]
[328486834,1717438242801,-287.449984,0.00027285,2]
[328486835,1717438242810,-199.061762,0.00027285,2]
[328486836,1717438242819,-199.061762,0.00027285,2]
[328486837,1717438242829,-199.061762,0.00027285,2]
[328486838,1717438242838,-199.061762,0.00027285,2]
[328486839,1717438242847,-163.73354267,0.00027295,2]
[328486840,1717438242856,-2000.0,0.00027296,2]
[328486841,1717438242866,-199.061762,0.00027296,2]
[328486842,1717438242875,-199.061762,0.00027296,2]
[328486843,1717438242884,-3424.03117263,0.00027297,7]
[328486844,1717438242893,-13277.9624816,0.00027297,3]
[328486845,1717438242906,-69292.27000001,0.00027297,3]
[328486851,1717438243987,-4411.01,0.00026876,3]
[328486852,1717438243997,-6317.76751839,0.00027297,3]
[328486853,1717438244006,-451.30767105,0.00027297,2]
[328486854,1717438244015,-199.061762,0.00027297,2]
[328486855,1717438244024,-199.061762,0.00027297,2]
[328486856,1717438244033,-151.0,0.00027297,2]
[328486857,1717438244042,-949.582634,0.00027297,2]
[328486858,1717438244051,-949.582634,0.00027297,2]
[328486859,1717438244060,-160.0,0.000273,2]
[328486860,1717438244070,-151.0,0.00027353,7]
[328486861,1717438244079,-151.0,0.00027365,2]
[328486863,1717438244088,-225.76392,0.00027365,2]
[328486865,1717438244097,-151.0,0.00027365,2]
[328486866,1717438244106,-225.76392,0.00027365,2]
[328486867,1717438244116,-1897.95333123,0.00027368,2]
[328486876,1717438246935,-212.23309392,0.00027368,2]
[328486877,1717438246945,-5223.2162439,0.00027368,2]
[328486878,1717438246955,-151.0,0.00027368,2]
[328486879,1717438246965,-949.582634,0.00027368,2]
[328486880,1717438246976,-949.582634,0.00027368,2]
[328486881,1717438246986,-151.0,0.00027377,2]
[328486882,1717438246995,-364.0545,0.00027377,2]
[328486883,1717438247005,-364.0545,0.00027377,2]
[328486884,1717438247015,-151.0,0.00027377,2]
[328486885,1717438247026,-151.0,0.00027377,2]
[328486886,1717438247036,-151.0,0.00027377,2]
[328486887,1717438247046,-151.0,0.00027377,2]
[328486888,1717438247057,-151.0,0.00027392,2]
[328486889,1717438247068,-151.0,0.00027392,2]
[328486890,1717438247078,-151.0,0.00027392,2]
[328486891,1717438247087,-218.724556,0.00027392,2]
[328486892,1717438247097,-218.724556,0.00027392,2]
[328486893,1717438247107,-151.0,0.00027392,2]
[328486894,1717438247231,-151.0,0.00027392,2]
[328486895,1717438247241,-7157.39326466,0.00027395,2]
[328486896,1717438247252,-28255.44207491,0.00027395,2]
[328486897,1717438247262,-430.51575102,0.00027395,2]
[328486898,1717438247273,-154.9690062,0.00027395,2]
[328486899,1717438247282,-244.31206048,0.00027395,2]
[328486900,1717438247292,-316.02917454,0.00027395,2]
[328486901,1717438247302,-151.0,0.00027395,2]
[328486902,1717438247311,-151.0,0.00027395,2]
[328486903,1717438247321,-208.280396,0.00027395,2]
[328486904,1717438247330,-151.0,0.00027395,2]
[328486905,1717438247339,-151.0,0.00027395,2]
[328486906,1717438247349,-151.0,0.00027395,2]
[328486907,1717438247358,-151.804322,0.00027395,2]
[328486908,1717438247368,-151.0,0.00027395,2]
[328486909,1717438247377,-151.0,0.00027395,2]
[328486910,1717438247387,-151.0,0.00027395,2]
[328486911,1717438247396,-151.0,0.00027395,2]
[328486912,1717438247406,-151.0,0.00027395,2]
[328486913,1717438247415,-151.0,0.00027395,2]
[328486914,1717438247424,-287.62592,0.00027395,2]
[328486915,1717438247434,-151.0,0.00027395,2]
[328486916,1717438247443,-151.0,0.00027395,2]
[328486917,1717438247452,-151.0,0.00027395,2]
[328486918,1717438247461,-218.724556,0.00027395,2]
[328486919,1717438247471,-218.724556,0.00027395,2]
[328486920,1717438247480,-218.724556,0.00027395,2]
[328486921,1717438247489,-218.724556,0.00027395,2]
[328486922,1717438247499,-218.724556,0.00027395,2]
[328486923,1717438247508,-218.724556,0.00027395,2]
[328486924,1717438247518,-151.0,0.00027395,2]
[328486925,1717438247527,-151.0,0.00027395,2]
[328486926,1717438247537,-151.0,0.00027395,2]
[328486927,1717438247547,-260.72963465,0.00027395,2]
[328486928,1717438247556,-151.0,0.00027395,2]
[328486929,1717438247566,-151.0,0.00027395,2]
[328486930,1717438247576,-151.0,0.00027395,2]
[328486931,1717438247586,-586.1041499,0.00027395,2]
[328486932,1717438247595,-364.0545,0.00027395,2]
[328486933,1717438247604,-364.0545,0.00027395,2]
[328486934,1717438247614,-364.0545,0.00027395,2]
[328486935,1717438247624,-364.0545,0.00027395,2]
[328486936,1717438247637,-151.0,0.00027395,2]
[328486937,1717438247647,-151.0,0.00027395,2]
[328486938,1717438247658,-151.0,0.00027395,2]
[328486939,1717438247667,-204.500218,0.00027395,2]
[328486940,1717438247678,-151.0,0.00027395,2]
[328486941,1717438247688,-151.0,0.00027395,2]
[328486942,1717438247698,-309.26630201,0.00027395,2]
[328486943,1717438247707,-151.0,0.00027395,2]
[328486944,1717438247719,-151.0,0.00027395,2]
[328486945,1717438247728,-151.0,0.00027395,2]
[328486946,1717438247737,-225.76392,0.00027395,2]
[328486947,1717438247747,-225.76392,0.00027395,2]
[328486948,1717438247756,-225.76392,0.00027395,2]
[328486949,1717438247766,-151.0,0.00027395,2]
[328486950,1717438247775,-151.0,0.00027395,2]
[328486951,1717438247784,-151.0,0.00027395,2]
[328486952,1717438247793,-225.76392,0.00027395,2]
[328486953,1717438247803,-225.76392,0.00027395,2]
[328486954,1717438247814,-225.76392,0.00027395,2]
[328486955,1717438247824,-238.58491264,0.00027395,7]
[328486956,1717438247833,-897.68664681,0.00027395,2]
[328486957,1717438247842,-377.3169249,0.00027395,2]
[328486958,1717438247852,-762.14384206,0.00027395,2]
[328486959,1717438247862,-253.51892741,0.00027395,2]
[328486960,1717438247871,-1315.4253657,0.00027395,2]
[328486961,1717438247881,-156.75423754,0.00027395,2]
[328486962,1717438247890,-2830.62157862,0.00027395,2]
[328486963,1717438247899,-199.061762,0.00027395,2]
[328486964,1717438247910,-199.061762,0.00027395,2]
[328486965,1717438247919,-3824.93414695,0.00027395,2]
[328486966,1717438247928,-199.061762,0.00027395,2]
[328486967,1717438247938,-199.061759,0.00027395,2]
[328486968,1717438247947,-2482.67070803,0.00027395,2]
[328486969,1717438247957,-3580.46436302,0.00027395,2]
[328486970,1717438247966,-157.08067164,0.00027395,2]
[328486971,1717438247975,-151.0,0.00027395,2]
[328486972,1717438247985,-949.582634,0.00027395,2]
[328486973,1717438247995,-949.582632,0.00027395,2]
[328486974,1717438248004,-2726.69314769,0.00027396,2]
[328486975,1717438248014,-364.0545,0.00027396,2]
[328486976,1717438248024,-364.0545,0.00027396,2]
[328486977,1717438248033,-151.0,0.00027396,2]
[328486978,1717438248043,-151.0,0.00027396,2]
[328486979,1717438248052,-225.76392,0.00027396,2]
[328486980,1717438248062,-151.0,0.00027396,2]
[328486981,1717438248071,-225.76392,0.00027396,2]
[328486982,1717438248081,-151.0,0.00027397,2]
[328486983,1717438248091,-151.0,0.00027397,2]
[328486984,1717438248101,-151.0,0.00027397,2]
[328486985,1717438248110,-151.0,0.00027397,2]
[328486986,1717438248120,-151.0,0.00027397,2]
[328486987,1717438248130,-151.0,0.00027397,2]
[328486988,1717438248140,-151.0,0.00027397,2]
[328486989,1717438248149,-151.0,0.00027397,2]
[328486990,1717438248159,-151.0,0.00027397,2]
[328486991,1717438248168,-151.0,0.00027397,2]
[328486992,1717438248177,-151.0,0.00027397,2]
[328486993,1717438248186,-151.0,0.00027397,2]
[328486994,1717438248195,-151.0,0.00027397,2]
[328486995,1717438248204,-151.0,0.00027397,2]
[328486996,1717438248214,-151.0,0.00027397,2]
[328486997,1717438248224,-151.0,0.00027397,2]
[328486998,1717438248233,-151.0,0.00027397,2]
[328486999,1717438248242,-151.0,0.00027397,2]
[328487000,1717438248251,-218.724556,0.00027397,2]
[328487001,1717438248261,-218.724556,0.00027397,2]
[328487002,1717438248270,-218.724556,0.00027397,2]
[328487003,1717438248279,-218.724556,0.00027397,2]
[328487004,1717438248290,-218.724556,0.00027397,2]
[328487005,1717438248300,-218.724556,0.00027397,2]
[328487006,1717438248310,-218.724556,0.00027397,2]
[328487007,1717438248319,-218.724556,0.00027397,2]
[328487008,1717438248328,-218.724556,0.00027397,2]
[328487009,1717438248338,-218.724556,0.00027397,2]
[328487010,1717438248347,-218.724556,0.00027397,2]
[328487011,1717438248356,-218.72456133,0.00027397,2]
[328487012,1717438248365,-151.0,0.00027397,2]
[328487013,1717438248374,-151.0,0.00027397,2]
[328487014,1717438248384,-151.0,0.00027397,2]
[328487015,1717438248393,-151.0,0.00027397,2]
[328487016,1717438248403,-151.0,0.00027397,2]
[328487017,1717438248414,-151.0,0.00027397,2]
[328487018,1717438248425,-364.0545,0.00027397,2]
[328487019,1717438248435,-364.0545,0.00027397,2]
[328487020,1717438248444,-364.0545,0.00027397,2]
[328487021,1717438248454,-364.0545,0.00027397,2]
[328487022,1717438248464,-364.0545,0.00027397,2]
[328487023,1717438248473,-364.0545,0.00027397,2]
[328487024,1717438248483,-364.0545,0.00027397,2]
[328487025,1717438248492,-364.0545,0.00027397,2]
[328487026,1717438248502,-364.0545,0.00027397,2]
[328487027,1717438248511,-364.0545,0.00027397,2]
[328487028,1717438248521,-364.0545,0.00027397,2]
[328487029,1717438248530,-364.054503,0.00027397,2]
[328487030,1717438248540,-185.29251,0.00027397,2]
[328487031,1717438248549,-151.0,0.00027397,2]
[328487032,1717438248559,-151.0,0.00027397,2]
[328487033,1717438248569,-265.270841,0.00027397,2]
[328487034,1717438248579,-225.76392,0.00027397,2]
[328487035,1717438248588,-225.76392,0.00027397,2]
[328487036,1717438248598,-225.76392,0.00027397,2]
[328487037,1717438248607,-225.76392,0.00027397,2]
[328487038,1717438248616,-225.76392,0.00027397,2]
[328487039,1717438248626,-151.0,0.00027397,2]
[328487040,1717438248638,-151.0,0.00027397,2]
[328487041,1717438248647,-151.0,0.00027397,2]
[328487042,1717438248657,-225.76392,0.00027397,2]
[328487043,1717438248667,-225.76392,0.00027397,2]
[328487044,1717438248677,-225.76392,0.00027397,2]
[328487045,1717438248686,-225.76392,0.00027397,2]
[328487046,1717438248697,-225.76392,0.00027397,2]
[328487047,1717438248706,-30069.42,0.00027397,6]
[328487048,1717438248716,-30069.42,0.00027397,6]
[328487049,1717438248725,-16765.21407739,0.00027397,6]
[328487051,1717438372428,721.58593738,9.999e-05,2]
[328487055,1717438707883,49520.1077355,0.000181,6]
[328487083,1717439231183,-440.96559925,0.00023292,2]
[328487084,1717439231203,-166.666666,0.00024257,2]
[328487085,1717439231222,-69.96773475,0.00024612,2]
[328487086,1717439238210,-464.90715033,0.00024612,2]
[328487087,1717439244100,-171.72636718,0.00024612,2]
[328487089,1717439346136,-150.0,0.000189,2]
[328487090,1717439352131,-150.0,0.000239,2]
[328487091,1717439352151,-776.01679233,0.00024612,2]
[328487092,1717439369188,-24900.0,0.00024597,2]
[328487093,1717439369209,-830.45966181,0.00024612,2]
[328487094,1717439369230,-286.38202963,0.00024612,2]
[328487100,1717439383801,215.19977606,0.00024612,2]
[328487146,1717439432059,-71.18225357,0.00024612,2]
[328487148,1717439432069,-394.3509307,0.00024767,2]
[328487150,1717439432079,-184.429459,0.00024771,2]
[328487152,1717439432088,-168.453651,0.00025395,2]
[328487154,1717439432098,-166.666666,0.00026,2]
[328487156,1717439432107,-299.22728336,0.00026025,2]
[328487158,1717439432116,-258.90370922,0.00026025,2]
[328487159,1717439432125,-362.89822616,0.00026297,2]
[328487161,1717439432135,-500.0,0.00026397,7]
[328487163,1717439432144,-500.0,0.00026397,7]
[328487165,1717439432153,-500.0,0.00026397,7]
[328487167,1717439432162,-500.0,0.00026397,7]
[328487169,1717439432171,-500.0,0.00026397,7]
[328487171,1717439432182,-500.0,0.00026397,7]
[328487173,1717439432191,-500.0,0.00026397,7]
[328487174,1717439432201,-500.0,0.00026397,7]
[328487175,1717439432210,-500.0,0.00026397,7]
[328487176,1717439432219,-500.0,0.00026397,7]
[328487177,1717439432228,-500.0,0.00026397,7]
[328487178,1717439432238,-500.0,0.00026397,7]
[328487179,1717439432247,-500.0,0.00026397,7]
[328487180,1717439432256,-500.0,0.00026397,7]
[328487181,1717439432265,-500.0,0.00026397,7]
[328487182,1717439432276,-500.0,0.00026397,7]
[328487183,1717439432284,-500.0,0.00026397,7]
[328487184,1717439432293,-403.21688077,0.00026397,7]
[328487185,1717439432306,-96.78311923,0.00026397,7]
[328487186,1717439432315,-500.0,0.00026397,7]
[328487187,1717439432325,-500.0,0.00026397,7]
[328487188,1717439432334,-500.0,0.00026397,7]
[328487189,1717439432344,-500.0,0.00026397,7]
[328487190,1717439432353,-500.0,0.00026397,7]
[328487191,1717439432363,-500.0,0.00026397,7]
[328487192,1717439432372,-500.0,0.00026397,7]
[328487193,1717439432381,-500.0,0.00026397,7]
[328487194,1717439432390,-500.0,0.00026397,7]
[328487195,1717439432400,-500.0,0.00026397,7]
[328487196,1717439432409,-500.0,0.00026397,7]
[328487197,1717439432418,-500.0,0.00026397,7]
[328487198,1717439432427,-500.0,0.00026397,7]
[328487199,1717439432436,-500.0,0.00026397,7]
[328487200,1717439432446,-500.0,0.00026397,7]
[328487201,1717439432455,-500.0,0.00026397,7]
[328487202,1717439432464,-500.0,0.00026397,7]
[328487203,1717439432474,-500.0,0.00026397,7]
[328487204,1717439432483,-500.0,0.00026397,7]
[328487205,1717439432492,-510.0,0.00026397,7]
[328487206,1717439432502,-362.89822611,0.00026669,2]
[328487207,1717439432512,-712.5,0.00026849,2]
[328487208,1717439432522,-627.330175,0.00026849,2]
[328487209,1717439432532,-153.08,0.000269,3]
[328487210,1717439432541,-153.08,0.000269,3]
[328487211,1717439432552,-153.08,0.000269,3]
[328487212,1717439432562,-153.08,0.000269,3]
[328487213,1717439432571,-153.08,0.000269,3]
[328487214,1717439432581,-153.08,0.000269,3]
[328487215,1717439432591,-153.08,0.000269,3]
[328487216,1717439432600,-153.08,0.000269,3]
[328487217,1717439432610,-153.08,0.000269,3]
[328487218,1717439432620,-153.08,0.000269,3]
[328487219,1717439432630,-153.08,0.000269,3]
[328487220,1717439432640,-153.08,0.000269,3]
[328487221,1717439432649,-153.08,0.000269,3]
[328487222,1717439432659,-153.08,0.000269,3]
[328487223,1717439432669,-153.08,0.000269,3]
[328487224,1717439432679,-153.08,0.000269,3]
[328487225,1717439432689,-153.08,0.000269,3]
[328487226,1717439432699,-153.08,0.000269,3]
[328487227,1717439432708,-153.08,0.000269,3]
[328487228,1717439432717,-362.89822611,0.00027041,2]
[328487229,1717439432727,-238.05732863,0.00027058,2]
[328487230,1717439432736,-163.62784834,0.00027189,2]
[328487231,1717439432746,-159.86541143,0.00027197,2]
[328487232,1717439432756,-192.33,0.00027287,3]